{"text_format":"1","workbook":"xlsx","n_sheets":16,"sheets":["Uvod","V_1","V_2","V_3","V_4","V_5","V_6","V_7","V_8","V_9","V_10","V_11","V_12","V_13","V_14","V_15"],"not_rendered":{"charts":0,"images":14,"macros":1,"external_links":0,"defined_names":0,"comments":0,"pivot_tables":0},"unopened":[],"bounds":{"document_bytes":16777216,"sheet_cells":100000,"rows_first":2000,"rows_last":500,"rows_between":2000,"halvings":0,"cell_chars":16384,"cell_head_chars":4096},"cells_cut":0,"cells_raw":0,"read":"whole","date_system":"1900"}

{"sheet":"Uvod","index":0,"n_rows":23,"n_cols":3,"rows_kept":23,"cut":false,"hidden":false,"merged":[[20,2,21,11],[22,2,23,11]]}
["           ",null,"Polovica in četrtina"]
[]
[]
[null,null,"S pripravljenimi nalogami boš utrdil učno snov o delih celote."]
[]
[null,null,"Naloge so interaktivne (rešuješ jih s pomočjo računalnika)."]
[]
[null,null,"V obarvana polja zapiši ustrezne odgovore."]
[]
[null,null,"Pozoren bodi na navodila za vpisovanje rešitev ob posamezni nalogi."]
[]
[null,null,"Računalnik ti bo sproti sporočal, ali je tvoja vpisana rešitev pravilna."]
[null,null,"Sporočilo (nasmeh) dobiš, ko se premakneš ven iz polja, v katerega si vpisal rešitev."]
[]
[]
[null,null,"Priprava nalog: Damjana Vidmar"]
[]
[]
[null,null,"Uporabljena literatura:"]
[]
[null,null,"Manfreda Kolar, Vida, Mateja Urbančič Jelovšek. Matematika 3. Učbenik za matematiko v tretjem\nrazredu osnovne šole. Ljubljana: Mladinska knjiga, 2006."]
[]
[null,null,"Manfreda Kolar, Vida, Mateja Urbančič Jelovšek. Matematika 3. Delovni zvezek - 1. in 2. del. Ljubljana: Mladinska knjiga, 2006."]

{"sheet":"V_1","index":1,"n_rows":29,"n_cols":19,"rows_kept":29,"cut":false,"hidden":false,"merged":[]}
["        "]
[]
[]
[]
[null,null,null,null,"Navodilo"]
[null,null,null,null,"V obarvano polje pod lik zapiši P, če je pobarvana polovica lika. "]
[null,null,null,null,"V obarvano polje pod lik zapiši N, če ni pobarvana polovica lika."]
[]
[]
[]
[]
[]
[]
[]
[]
[]
[null,null,null,null,null,null,null,null,null,null,null,null,null,null,"p","p","n","p",{"$f":"IF(OR(E17=0, H17=0, K17=0, M17=0), \"Zapiši črko P ali N.\", IF(AND(E17=O17, H17=P17, K17=Q17, M17=R17), \"Uspelo ti je!\", \"Popravi. Vsi odgovori niso pravilni.\"))","v":"Zapiši črko P ali N."}]
[]
[]
[]
[]
[]
[]
[]
[]
[]
[]
[]
[null,null,null,null,null,null,null,null,null,null,null,null,null,null,"n","p","p","n",{"$f":"IF(OR(E29=0, H29=0, K29=0, M29=0), \"Zapiši črko P ali N.\", IF(AND(E29=O29, H29=P29, K29=Q29, M29=R29), \"Uspelo ti je!\", \"Popravi. Vsi odgovori niso pravilni.\"))","v":"Zapiši črko P ali N."}]

{"sheet":"V_2","index":2,"n_rows":29,"n_cols":26,"rows_kept":29,"cut":false,"hidden":false,"merged":[]}
["        "]
[]
[]
[]
[null,null,null,null,"Navodilo"]
[null,null,null,null,"Na rumeno polje zapiši P, če je lik razdeljen na četrtine."]
[null,null,null,null,"Na rumeno polje zapiši N, če lik ni razdeljen na četrtine."]
[]
[]
[]
[]
[]
[]
[]
[]
[]
[null,null,null,null,null,null,null,null,null,null,null,null,null,null,null,null,null,null,null,null,null,"n","p","n","p",{"$f":"IF(OR(D17=0, I17=0, N17=0, R17=0), \"Zapiši črko P ali N.\", IF(AND(D17=V17, I17=W17, N17=X17, R17=Y17), \"Uspelo ti je!\", \"Popravi. Vsi odgovori niso pravilni.\"))","v":"Zapiši črko P ali N."}]
[]
[]
[]
[]
[]
[]
[]
[]
[]
[]
[]
[null,null,null,null,null,null,null,null,null,null,null,null,null,null,null,null,null,null,null,null,null,"n","p","n","p",{"$f":"IF(OR(D29=0, H29=0, L29=0, R29=0), \"Zapiši črko P ali N.\", IF(AND(D29=V29, H29=W29, L29=X29, R29=Y29), \"Uspelo ti je!\", \"Popravi. Vsi odgovori niso pravilni.\"))","v":"Zapiši črko P ali N."}]

{"sheet":"V_3","index":3,"n_rows":20,"n_cols":12,"rows_kept":20,"cut":false,"hidden":false,"merged":[[17,10,18,10],[14,7,18,7],[15,2,16,2],[17,1,18,3],[14,5,18,5],[14,6,18,6],[15,9,16,9],[17,9,18,9],[15,10,16,10]]}
[]
[]
[]
[]
[]
[]
[]
[]
[]
[null,null,"Navodilo"]
[null,null,"V vse delčke ki jih želiš pobarvati, napiši številko 1.  "]
[null,null,"S tipko Delete na tipkovnici pobrišeš, kar si napačno pobarval."]
[]
[]
[]
[null,null,{"$f":"IF(AND(E20=1,L20=2),\"J\",\"K\")","v":"K"}]
[]
[null,"Nasmeh dobiš, ko \nje naloga v celoti \npravilno rešena."]
[]
[null,null,null,null,{"$f":"F20+G20","v":0},{"$f":"SUM(F15:F19)","v":0},{"$f":"SUM(G15:G19)","v":0},null,null,{"$f":"SUM(J16:J18)","v":0},{"$f":"SUM(K16:K18)","v":0},{"$f":"J20+K20","v":0}]

{"sheet":"V_4","index":4,"n_rows":21,"n_cols":14,"rows_kept":21,"cut":false,"hidden":false,"merged":[[15,2,16,2],[14,4,14,7],[15,4,15,7],[16,4,16,7],[17,1,18,3],[18,9,19,9],[18,10,19,10],[18,12,19,12],[16,11,17,11],[16,12,17,12],[17,4,17,7],[18,4,18,7],[19,4,19,7],[18,11,19,11]]}
[]
[]
[]
[]
[]
[]
[]
[]
[]
[null,null,"Navodilo"]
[null,null,"V vse delčke ki jih želiš pobarvati, napiši številko 1.  "]
[null,null,"S tipko Delete na tipkovnici pobrišeš, kar si napačno pobarval."]
[]
[]
[]
[null,null,{"$f":"IF(AND(G21=1,N21=1),\"J\",\"K\")","v":"K"}]
[]
[null,"Nasmeh dobiš, ko \nje naloga v celoti \npravilno rešena."]
[]
[]
[null,null,null,null,null,null,{"$f":"SUM(E16:H19)","v":0},null,null,{"$f":"SUM(J19:J20)","v":0},{"$f":"SUM(K19:K20)","v":0},{"$f":"SUM(L17:L20)","v":0},null,{"$f":"SUM(J21:M21)","v":0}]

{"sheet":"V_5","index":5,"n_rows":12,"n_cols":14,"rows_kept":12,"cut":false,"hidden":false,"merged":[[8,1,9,3],[10,1,12,3],[13,3,13,10],[19,3,19,10]]}
["        "]
[]
[]
[null,null,null,null,"Navodilo"]
[null,null,null,null,"V vse kvadratke, ki jih želiš pobarvati, napiši številko 1.  "]
[null,null,null,null,"S tipko Delete na tipkovnici pobrišeš, kar si napačno pobarval."]
[]
[]
[null,{"$f":"IF(AND(I12=6,N12=4),\"J\",\"K\")","v":"K"}]
[]
[null,"Nasmeh dobiš, ko boš pobarval polovico prvega in polovico drugega lika."]
[null,null,null,null,null,null,null,null,{"$f":"F9+G9+H9+F10+I9+G10+H10+I10+F11+G11+H11+I11","v":0},null,null,null,null,{"$f":"K9+M9+K10+L10+M10+K11+L11+M11","v":0}]

{"sheet":"V_6","index":6,"n_rows":19,"n_cols":18,"rows_kept":19,"cut":false,"hidden":false,"merged":[[14,1,15,3],[16,1,17,3],[27,5,27,16]]}
[]
[]
[]
[]
[]
[]
[]
[]
[]
[null,null,null,null,"Navodilo"]
[null,null,null,null,"V vse kvadratke, ki jih želiš pobarvati, napiši številko 1.  "]
[null,null,null,null,"S tipko Delete na tipkovnici pobrišeš, kar si napačno pobarval."]
[]
[]
[null,{"$f":"IF(AND(K19=3,R19=5),\"J\",\"K\")","v":"K"}]
[]
[null,"Nasmeh dobiš, ko boš pobarval četrtino prvega in četrtino drugega lika."]
[]
[null,null,null,null,null,null,null,null,null,null,{"$f":"F17+F18+G17+G18+H17+H18+I17+I18+J17+J18+K17+K18","v":0},null,null,null,null,null,null,{"$f":"M16+M17+M18+N17+N18+O17+O18+P17+Q15+P18+Q16+Q17+Q18+R15+R16+R17+R18+S16+S17+S18","v":0}]

{"sheet":"V_7","index":7,"n_rows":29,"n_cols":35,"rows_kept":29,"cut":false,"hidden":false,"merged":[[18,2,18,5],[18,9,18,12],[18,16,18,19],[18,23,18,26],[20,3,20,4],[20,10,20,11],[20,17,20,18],[20,24,20,25],[27,3,27,6],[27,12,27,15],[27,21,27,24],[28,4,28,5],[28,13,28,14],[28,22,28,23]]}
[]
[]
[]
[]
[]
[]
[]
[]
[]
[]
[]
[]
[]
[]
[]
[]
[]
[]
[null,null,null,null,null,null,null,null,null,null,null,null,null,null,null,null,null,null,null,null,null,null,null,null,null,null,null,null,null,null,null,"polovica","četrtina","ena polovica","ena četrtina"]
[]
[null,null,null,{"$f":"IF(C19=0, \"K\", IF(OR(C19=AF19, C19=AH19), \"J\", \"L\"))","v":"K"},null,null,null,null,null,null,{"$f":"IF(J19=0, \"K\", IF(OR(J19=AG19, J19=AI19), \"J\", \"L\"))","v":"K"},null,null,null,null,null,null,{"$f":"IF(Q19=0, \"K\", IF(OR(Q19=AF19, Q19=AH19), \"J\", \"L\"))","v":"K"},null,null,null,null,null,null,{"$f":"IF(X19=0, \"K\", IF(OR(X19=AF19, X19=AH19), \"J\", \"L\"))","v":"K"}]
[]
[]
[]
[]
[]
[]
[null,null,null,null,null,null,null,null,null,null,null,null,null,null,null,null,null,null,null,null,null,null,null,null,null,null,null,null,null,null,null,"polovica","četrtina","ena polovica","ena četrtina"]
[null,null,null,null,{"$f":"IF(D28=0, \"K\", IF(OR(D28=AF28, D28=AG28), \"J\", \"L\"))","v":"K"},null,null,null,null,null,null,null,null,{"$f":"IF(M28=0, \"K\", IF(OR(M28=AG28, M28=AI28), \"J\", \"L\"))","v":"K"},null,null,null,null,null,null,null,null,{"$f":"IF(V28=0, \"K\", IF(OR(V28=AG28, V28=AI28), \"J\", \"L\"))","v":"K"}]

{"sheet":"V_8","index":8,"n_rows":23,"n_cols":14,"rows_kept":23,"cut":false,"hidden":false,"merged":[[22,8,22,10]]}
[]
[]
[]
[]
[]
[]
[]
[]
[]
[]
[]
[]
[]
[]
[]
[]
[]
[]
[null,{"$f":"IF(F19=0, \"K\", IF(F19=M19, \"J\",\"L\"))","v":"K"},"Miha je iz kock zgradil",null,null,null,"stolpce.",null,null,null,null,null,4]
[]
[null,{"$f":"IF(H21=0, \"K\", IF(H21=M21, \"J\",\"L\"))","v":"K"},"Koliko stolpcev je modre barve?",null,null,null,null,null,null,null,null,null,1]
[]
[null,{"$f":"IF(I23=0, \"K\", IF(OR(I23=M23,I23=N23), \"J\",\"L\"))","v":"K"},"Kolikšen DEL stolpcev je modre barve?",null,null,null,null,null,null,null,null,null,"četrtina","ena četrtina"]

{"sheet":"V_9","index":9,"n_rows":27,"n_cols":14,"rows_kept":27,"cut":false,"hidden":false,"merged":[[22,8,22,10],[26,8,26,10]]}
[]
[]
[]
[]
[]
[]
[]
[]
[]
[]
[]
[]
[]
[]
[]
[]
[]
[]
[null,{"$f":"IF(F19=0, \"K\", IF(F19=M19, \"J\",\"L\"))","v":"K"},"Tine je iz kock zgradil",null,null,null,"stolpce.",null,null,null,null,null,6]
[]
[null,{"$f":"IF(H21=0, \"K\", IF(H21=M21, \"J\",\"L\"))","v":"K"},"Koliko stolpcev je modre barve?",null,null,null,null,null,null,null,null,null,3]
[]
[null,{"$f":"IF(I23=0, \"K\", IF(OR(I23=M23,I23=N23), \"J\",\"L\"))","v":"K"},"Kolikšen DEL stolpcev je modre barve?",null,null,null,null,null,null,null,null,null,"polovica","ena polovica"]
[]
[null,{"$f":"IF(H25=0, \"K\", IF(H25=M25, \"J\",\"L\"))","v":"K"},"Koliko stolpcev je rumene barve?",null,null,null,null,null,null,null,null,null,3]
[]
[null,{"$f":"IF(I27=0, \"K\", IF(OR(I27=M27,I27=N27), \"J\",\"L\"))","v":"K"},"Kolikšen DEL stolpcev je rumene barve?",null,null,null,null,null,null,null,null,null,"polovica","ena polovica"]

{"sheet":"V_10","index":10,"n_rows":25,"n_cols":19,"rows_kept":25,"cut":false,"hidden":false,"merged":[]}
[]
[]
[]
[]
[]
[]
[]
[]
[]
[]
[]
[]
[null,null,null,null,null,"je za pripravo palačink porabil četrtino ",null,null,null,null,null,null,null,null,null,null,null,null,"."]
[]
[]
[]
[]
[null,{"$f":"IF(AND(D18=N18, E18=O18, F18=P18, H18=Q18),\"J\", IF(OR(D18=0, E18=0, F18=0, H18=0),\"K\", \"L\"))","v":"K"},"RAČUN: ",null,null,null,"=",null,null,null,null,null,null,12,":",4,3]
[]
[null,null,"Računski znak zapišeš tako, da klikneš v modro polje nato pa klikneš ustrezen računski znak."]
[]
[]
[null,{"$f":"IF(H23=0, \"K\", IF(H23=N23, \"J\", \"L\"))","v":"K"},"ODGOVOR:","   Kuhar je porabil",null,null,null,null," jajca.",null,null,null,null,3]
[]
[null,{"$f":"IF(H25=0, \"K\", IF(H25=N25, \"J\", \"L\"))","v":"K"},null,"     Četrtina od 12 je ",null,null,null,null,".",null,null,null,null,3]

{"sheet":"V_11","index":11,"n_rows":25,"n_cols":19,"rows_kept":25,"cut":false,"hidden":false,"merged":[]}
[]
[]
[]
[]
[]
[]
[]
[]
[]
[]
[]
[]
[null,null,null,null,null,"je za pripravo torte porabila polovico",null,null,null,null,null,null,null,null,null,null,null,null,"."]
[]
[]
[]
[]
[null,{"$f":"IF(AND(D18=N18, E18=O18, F18=P18, H18=Q18),\"J\", IF(OR(D18=0, E18=0, F18=0, H18=0),\"K\", \"L\"))","v":"K"},"RAČUN: ",null,null,null,"=",null,null,null,null,null,null,8,":",2,4]
[]
[null,null,"Računski znak zapišeš tako, da klikneš v modro polje nato pa klikneš ustrezen računski znak."]
[]
[]
[null,{"$f":"IF(H23=0, \"K\", IF(H23=N23, \"J\", \"L\"))","v":"K"},"ODGOVOR:","  Babica je porabila",null,null,null,null," jajca.",null,null,null,null,4]
[]
[null,{"$f":"IF(H25=0, \"K\", IF(H25=N25, \"J\", \"L\"))","v":"K"},null,"     Polovica od 8 je ",null,null,null,null,".",null,null,null,null,4]

{"sheet":"V_12","index":12,"n_rows":19,"n_cols":27,"rows_kept":19,"cut":false,"hidden":false,"merged":[[4,10,5,11],[9,2,10,10],[15,2,16,10]]}
[]
[]
[]
[]
[null,null,null,null,null,null,null,null,null,null,{"$f":"IF(AND(F8=D19,C14=F19,D14=G19,E14=H19,G14=J19,P19=5),\"J\",\"K\")","v":"K"}]
[null,null,null,null,null,null,null,null,null,null,null,null,"Nasmeh dobiš, ko boš celo nalogo pravilno rešil."]
[]
[null,null,"               Na sliki je ",null,null,null,"   oranžnih kvadratkov.",null,null,null,null,null,null,null,"V vse kvadratke ki jih želiš pobarvati, napiši številko 1.  "]
[null,null,null,null,null,null,null,null,null,null,null,null,null,null,"S tipko Delete na tipkovnici pobrišeš, kar si napačno pobarval."]
[null,null,"Zapiši račun, ki ti bo povedal, koliko kvadratkov moraš pobarvati."]
[]
[]
[]
[null,null,null,null,null,"="]
[]
[null,null,"Računski znak zapišeš tako, da klikneš v modro polje nato pa klikneš na ustrezen računski znak."]
[]
[]
[null,null,null,10,null,10,":",2,"=",5,null,null,null,null,null,{"$f":"SUM(Q19:AA19)","v":0},{"$f":"Q11+Q12+Q13+Q14+Q15+Q16+Q17","v":0},0,0,0,0,0,0,0,0,0,{"$f":"AA11+AA12+AA13+AA14+AA15+AA16+AA17","v":0}]

{"sheet":"V_13","index":13,"n_rows":19,"n_cols":27,"rows_kept":19,"cut":false,"hidden":false,"merged":[[4,10,5,11],[9,2,10,10],[15,2,16,10]]}
[]
[]
[]
[]
[null,null,null,null,null,null,null,null,null,null,{"$f":"IF(AND(F8=D19,C14=F19,D14=G19,E14=H19,G14=J19,P19=6),\"J\",\"K\")","v":"K"}]
[null,null,null,null,null,null,null,null,null,null,null,null,"Nasmeh dobiš, ko boš celo nalogo rešil pravilno."]
[]
[null,null,"             Na sliki je ",null,null,null,"   oranžnih kvadratkov.",null,null,null,null,null,null,null,"V vse kvadratke ki jih želiš pobarvati, napiši številko 1.  "]
[null,null,null,null,null,null,null,null,null,null,null,null,null,null,"S tipko Delete na tipkovnici pobrišeš, kar si napačno pobarval."]
[null,null,"Zapiši račun, ki ti bo povedal, koliko kvadratkov moraš pobarvati."]
[]
[]
[]
[null,null,null,null,null,"="]
[]
[null,null,"Računski znak zapišeš tako, da klikneš v modro polje nato pa klikneš na ustrezen računski znak."]
[]
[]
[null,null,null,24,null,24,":",4,"=",6,null,null,null,null,null,{"$f":"SUM(Q19:AA19)","v":0},{"$f":"Q11+Q12+Q13+Q14+Q15+Q16+Q17","v":0},0,0,0,0,0,0,0,0,0,0]

{"sheet":"V_14","index":14,"n_rows":24,"n_cols":17,"rows_kept":24,"cut":false,"hidden":false,"merged":[]}
[]
[]
[]
[]
[]
[]
[]
[]
[]
[]
[]
[null,null,"Tina je na vrtu posadila 10 cvetlic."]
[null,null,"Polovica jih je ovenela."]
[null,null,"Koliko cvetlic je ovenelo?"]
[]
[]
[]
[]
[null,{"$f":"IF(AND(D19=N19, E19=O19, F19=P19, H19=Q19),\"J\", IF(OR(D19=0, E19=0, F19=0, H19=0),\"K\", \"L\"))","v":"K"},"RAČUN: ",null,null,null,"=",null,null,null,null,null,null,10,":",2,5]
[]
[null,null,"Računski znak zapišeš tako, da klikneš v modro polje nato pa klikneš ustrezen računski znak."]
[]
[]
[null,{"$f":"IF(G24=0, \"K\", IF(G24=N24, \"J\", \"L\"))","v":"K"},"ODGOVOR:","            Ovenelo je",null,null,null,"cvetlic.",null,null,null,null,null,5]

{"sheet":"V_15","index":15,"n_rows":23,"n_cols":17,"rows_kept":23,"cut":false,"hidden":false,"merged":[]}
[]
[]
[]
[]
[]
[]
[]
[]
[]
[]
[]
[]
[null,null,null,"Četrtino žog moram pobarvati z rumeno barvo."]
[null,null,null,"Izračunaj, koliko žog moram pobarvati."]
[]
[]
[]
[null,{"$f":"IF(AND(D18=N18, E18=O18, F18=P18, H18=Q18),\"J\", IF(OR(D18=0, E18=0, F18=0, H18=0),\"K\", \"L\"))","v":"K"},"RAČUN: ",null,null,null,"=",null,null,null,null,null,null,8,":",4,2]
[]
[null,null,"Računski znak zapišeš tako, da klikneš v modro polje nato pa klikneš ustrezen računski znak."]
[]
[]
[null,{"$f":"IF(K23=0, \"K\", IF(K23=N23, \"J\", \"L\"))","v":"K"},"ODGOVOR:","    Deklica mora z rumeno barvo pobarvati",null,null,null,null,null,null,null,"žogi.",null,2]